[Event "Titled Tuesday Blitz April 05 Early 2022"]
[White "Mogirzan, Matei-Valeriu"]
[Black "Odegov, Artem"]
[WhiteFideId "1257455"]
[BlackFideId "34183644"]
[WhiteElo "1733"]
[BlackElo "2286"]
[Result "0-1"]
[Round "05"]
[TimeControl "180+1"]
[Date "2022.04.05"]
[WhiteClock "0:00:07"]
[BlackClock "0:00:05"]

1. e4 {[%clk 0:02:38]}  e6 {[%clk 0:02:58]} 2. f4 {[%clk 0:02:37]}  d5 {[%clk 0:02:58]} 3. e5 {[%clk 0:02:37]}  c5 {[%clk 0:02:59]} 4. g4 {[%clk 0:02:37]}  Qh4+ {[%clk 0:02:56]} 5. Ke2 {[%clk 0:02:37]}  Qxg4+ {[%clk 0:02:56]} 6. Nf3 {[%clk 0:02:38]}  Qxf4 {[%clk 0:02:56]} 7. d4 {[%clk 0:02:38]}  Qe4+ {[%clk 0:02:54]} 8. Kf2 {[%clk 0:02:38]}  Be7 {[%clk 0:02:35]} 9. h4 {[%clk 0:01:47]}  f6 {[%clk 0:01:51]} 10. Bd3 {[%clk 0:01:40]}  Qg4 {[%clk 0:01:51]} 11. Rg1 {[%clk 0:01:39]}  Qh5 {[%clk 0:01:50]} 12. Rxg7 {[%clk 0:01:37]}  f5 {[%clk 0:01:50]} 13. Qg1 {[%clk 0:01:24]}  Kf8 {[%clk 0:01:45]} 14. Bg5 {[%clk 0:01:01]}  Nc6 {[%clk 0:01:22]} 15. Nc3 {[%clk 0:00:43]}  Bd7 {[%clk 0:01:00]} 16. Nb5 {[%clk 0:00:38]}  Nh6 {[%clk 0:00:20]} 17. Nd6 {[%clk 0:00:16]}  Ng4+ {[%clk 0:00:17]} 18. Qxg4 {[%clk 0:00:09]}  fxg4 {[%clk 0:00:16]} 19. Rf7+ {[%clk 0:00:09]}  Qxf7 {[%clk 0:00:15]} 20. Nxf7 {[%clk 0:00:09]}  Kxf7 {[%clk 0:00:15]} 21. Bxe7 {[%clk 0:00:08]}  Nxe7 {[%clk 0:00:16]} 22. Ng5+ {[%clk 0:00:09]}  Kg7 {[%clk 0:00:16]} 23. Kg3 {[%clk 0:00:08]}  h5 {[%clk 0:00:16]} 24. c3 {[%clk 0:00:07]}  c4 {[%clk 0:00:16]} 25. Rf1 {[%clk 0:00:06]}  Raf8 {[%clk 0:00:16]} 26. Be2 {[%clk 0:00:05]}  Rxf1 {[%clk 0:00:16]} 27. Bxf1 {[%clk 0:00:06]}  Rf8 {[%clk 0:00:16]} 28. Be2 {[%clk 0:00:07]}  Nf5+ {[%clk 0:00:17]} 29. Kf4 {[%clk 0:00:07]}  Nxh4+ {[%clk 0:00:18]} 30. Ke3 {[%clk 0:00:08]}  Ng6 {[%clk 0:00:18]} 31. b3 {[%clk 0:00:07]}  g3 {[%clk 0:00:19]} 32. Bf3 {[%clk 0:00:06]}  h4 {[%clk 0:00:18]} 33. bxc4 {[%clk 0:00:05]}  dxc4 {[%clk 0:00:18]} 34. d5 {[%clk 0:00:06]}  Rxf3+ {[%clk 0:00:17]} 35. Kxf3 {[%clk 0:00:06]}  exd5 {[%clk 0:00:18]} 36. e6 {[%clk 0:00:06]}  Bc6 {[%clk 0:00:18]} 37. Ke3 {[%clk 0:00:05]}  g2 {[%clk 0:00:17]} 38. Nh3 {[%clk 0:00:06]}  Ne5 {[%clk 0:00:16]} 39. Kd4 {[%clk 0:00:06]}  Nf3+ {[%clk 0:00:16]} 40. Kc5 {[%clk 0:00:07]}  g1=Q+ {[%clk 0:00:17]} 41. Nxg1 {[%clk 0:00:07]}  Nxg1 {[%clk 0:00:18]} 42. e7 {[%clk 0:00:05]}  h3 {[%clk 0:00:18]} 43. a4 {[%clk 0:00:05]}  h2 {[%clk 0:00:18]} 44. a5 {[%clk 0:00:05]}  h1=Q {[%clk 0:00:16]} 45. a6 {[%clk 0:00:06]}  Qe4 {[%clk 0:00:15]} 46. e8=N+ {[%clk 0:00:02]}  Bxe8 {[%clk 0:00:12]} 47. axb7 {[%clk 0:00:03]}  Qe5 {[%clk 0:00:09]} 48. b8=Q {[%clk 0:00:04]}  Qxb8 {[%clk 0:00:09]} 49. Kd4 {[%clk 0:00:05]}  Qd6 {[%clk 0:00:09]} 50. Ke3 {[%clk 0:00:05]}  Qe5+ {[%clk 0:00:09]} 51. Kd2 {[%clk 0:00:05]}  Qe2+ {[%clk 0:00:09]} 52. Kc1 {[%clk 0:00:05]}  Bf7 {[%clk 0:00:09]} 53. Kb1 {[%clk 0:00:06]}  Bg6+ {[%clk 0:00:09]} 54. Ka1 {[%clk 0:00:07]}  Qd3 {[%clk 0:00:05]} 55. Kb2 {[%clk 0:00:07]}  Qc2+ {[%clk 0:00:05]} 56. Ka3 {[%clk 0:00:07]}  Qb3# {[%clk 0:00:05]} 0-1


[Site "https://www.chess.com"]

[Event "Titled Tuesday Blitz April 05 Early 2022"]
[White "Molina, Roberto Junio Brito"]
[Black "Przybylski, Wojciech"]
[WhiteFideId "2109450"]
[BlackFideId "1117599"]
[WhiteElo "2432"]
[BlackElo "2133"]
[Result "1-0"]
[Round "05"]
[TimeControl "180+1"]
[Date "2022.04.05"]
[WhiteClock "0:00:23"]
[BlackClock "0:00:06"]

1. d4 {[%clk 0:03:00]}  d5 {[%clk 0:02:55]} 2. Nf3 {[%clk 0:03:00]}  Nf6 {[%clk 0:02:54]} 3. e3 {[%clk 0:03:01]}  c6 {[%clk 0:02:53]} 4. Be2 {[%clk 0:03:00]}  Bf5 {[%clk 0:02:52]} 5. O-O {[%clk 0:03:01]}  Nbd7 {[%clk 0:02:52]} 6. b3 {[%clk 0:03:02]}  e6 {[%clk 0:02:51]} 7. c4 {[%clk 0:03:02]}  Be7 {[%clk 0:02:50]} 8. Ba3 {[%clk 0:03:02]}  O-O {[%clk 0:02:48]} 9. Qc1 {[%clk 0:03:02]}  a5 {[%clk 0:02:47]} 10. Bxe7 {[%clk 0:03:00]}  Qxe7 {[%clk 0:02:47]} 11. Qa3 {[%clk 0:03:01]}  Rfe8 {[%clk 0:02:38]} 12. Qxe7 {[%clk 0:03:00]}  Rxe7 {[%clk 0:02:39]} 13. Nc3 {[%clk 0:02:59]}  Ne4 {[%clk 0:02:34]} 14. Rfc1 {[%clk 0:02:58]}  Nxc3 {[%clk 0:02:26]} 15. Rxc3 {[%clk 0:02:59]}  a4 {[%clk 0:02:26]} 16. b4 {[%clk 0:02:57]}  dxc4 {[%clk 0:02:24]} 17. Bxc4 {[%clk 0:02:53]}  e5 {[%clk 0:02:24]} 18. a3 {[%clk 0:02:50]}  exd4 {[%clk 0:02:19]} 19. Nxd4 {[%clk 0:02:51]}  Bg6 {[%clk 0:02:16]} 20. Be2 {[%clk 0:02:37]}  h6 {[%clk 0:01:40]} 21. Rac1 {[%clk 0:02:30]}  Kf8 {[%clk 0:01:39]} 22. Bf3 {[%clk 0:02:23]}  Rae8 {[%clk 0:01:28]} 23. h3 {[%clk 0:02:18]}  Be4 {[%clk 0:01:25]} 24. Bg4 {[%clk 0:02:16]}  Nf6 {[%clk 0:01:19]} 25. b5 {[%clk 0:01:58]}  Nxg4 {[%clk 0:01:12]} 26. hxg4 {[%clk 0:01:59]}  cxb5 {[%clk 0:01:06]} 27. Nxb5 {[%clk 0:01:59]}  Bc6 {[%clk 0:01:05]} 28. Nd4 {[%clk 0:01:57]}  Bd7 {[%clk 0:01:02]} 29. Rc4 {[%clk 0:01:46]}  b5 {[%clk 0:00:56]} 30. Rb4 {[%clk 0:01:46]}  Re5 {[%clk 0:00:55]} 31. Rc7 {[%clk 0:01:41]}  Rd8 {[%clk 0:00:55]} 32. Kh2 {[%clk 0:01:36]}  h5 {[%clk 0:00:52]} 33. gxh5 {[%clk 0:01:35]}  Rxh5+ {[%clk 0:00:52]} 34. Kg1 {[%clk 0:01:34]}  Be8 {[%clk 0:00:49]} 35. f3 {[%clk 0:01:30]}  Rdd5 {[%clk 0:00:46]} 36. Rc8 {[%clk 0:01:25]}  Ke7 {[%clk 0:00:46]} 37. g4 {[%clk 0:01:18]}  Rhe5 {[%clk 0:00:44]} 38. Nf5+ {[%clk 0:01:10]}  Kd7 {[%clk 0:00:43]} 39. Rc3 {[%clk 0:01:05]}  Rd1+ {[%clk 0:00:26]} 40. Kf2 {[%clk 0:01:05]}  Rd2+ {[%clk 0:00:24]} 41. Kg3 {[%clk 0:01:01]}  g6 {[%clk 0:00:23]} 42. Kf4 {[%clk 0:00:52]}  f6 {[%clk 0:00:20]} 43. Nd4 {[%clk 0:00:44]}  Kd6 {[%clk 0:00:18]} 44. e4 {[%clk 0:00:41]}  Bd7 {[%clk 0:00:17]} 45. Ke3 {[%clk 0:00:38]}  Ra2 {[%clk 0:00:17]} 46. Ne2 {[%clk 0:00:28]}  Ke7 {[%clk 0:00:13]} 47. Rd4 {[%clk 0:00:28]}  Re6 {[%clk 0:00:13]} 48. Nf4 {[%clk 0:00:27]}  Rd6 {[%clk 0:00:12]} 49. Nxg6+ {[%clk 0:00:27]}  Ke6 {[%clk 0:00:11]} 50. Nf4+ {[%clk 0:00:26]}  Ke7 {[%clk 0:00:11]} 51. Nd5+ {[%clk 0:00:21]}  Kd8 {[%clk 0:00:10]} 52. Nb4 {[%clk 0:00:22]}  Rxd4 {[%clk 0:00:08]} 53. Kxd4 {[%clk 0:00:23]}  Rd2+ {[%clk 0:00:07]} 54. Rd3 {[%clk 0:00:23]}  Rf2 {[%clk 0:00:06]} 55. Nd5 {[%clk 0:00:23]} 1-0


[Site "https://www.chess.com"]

[Event "Titled Tuesday Blitz April 05 Early 2022"]
[White "Muradov, Soltan"]
[Black "Bashirli, Saadat"]
[WhiteFideId "14002108"]
[BlackFideId "13429990"]
[WhiteElo "1854"]
[BlackElo "1173"]
[Result "1/2-1/2"]
[Round "05"]
[TimeControl "180+1"]
[Date "2022.04.05"]
[WhiteClock "0:00:17"]
[BlackClock "0:00:03"]

1. d4 {[%clk 0:02:57]}  d5 {[%clk 0:02:56]} 2. Nf3 {[%clk 0:02:57]}  e6 {[%clk 0:02:54]} 3. c4 {[%clk 0:02:50]}  c6 {[%clk 0:02:51]} 4. Nc3 {[%clk 0:02:51]}  dxc4 {[%clk 0:02:47]} 5. a4 {[%clk 0:02:50]}  Bb4 {[%clk 0:02:41]} 6. Bd2 {[%clk 0:02:46]}  Nf6 {[%clk 0:02:39]} 7. e3 {[%clk 0:02:46]}  Bxc3 {[%clk 0:02:36]} 8. Bxc3 {[%clk 0:02:47]}  O-O {[%clk 0:02:32]} 9. Bxc4 {[%clk 0:02:46]}  a6 {[%clk 0:02:29]} 10. O-O {[%clk 0:02:43]}  Qe7 {[%clk 0:02:23]} 11. Qc2 {[%clk 0:02:41]}  Nbd7 {[%clk 0:02:17]} 12. e4 {[%clk 0:02:41]}  Nb6 {[%clk 0:02:15]} 13. Bd3 {[%clk 0:02:41]}  h6 {[%clk 0:02:12]} 14. Rfe1 {[%clk 0:02:34]}  Rd8 {[%clk 0:02:09]} 15. Rad1 {[%clk 0:02:34]}  Bd7 {[%clk 0:02:05]} 16. h3 {[%clk 0:02:34]}  c5 {[%clk 0:02:01]} 17. Ba5 {[%clk 0:02:32]}  Bxa4 {[%clk 0:01:54]} 18. b3 {[%clk 0:02:31]}  c4 {[%clk 0:01:32]} 19. Bxb6 {[%clk 0:02:21]}  Bxb3 {[%clk 0:01:26]} 20. Qb2 {[%clk 0:02:16]}  Bxd1 {[%clk 0:01:24]} 21. Bxd8 {[%clk 0:01:59]}  Rxd8 {[%clk 0:01:16]} 22. Bxc4 {[%clk 0:01:58]}  Bxf3 {[%clk 0:01:12]} 23. gxf3 {[%clk 0:01:59]}  Qd7 {[%clk 0:01:08]} 24. Bf1 {[%clk 0:01:48]}  Nh5 {[%clk 0:01:03]} 25. d5 {[%clk 0:01:46]}  exd5 {[%clk 0:01:01]} 26. Rd1 {[%clk 0:01:46]}  Nf4 {[%clk 0:00:58]} 27. Qe5 {[%clk 0:01:46]}  Nxh3+ {[%clk 0:00:56]} 28. Bxh3 {[%clk 0:01:45]}  Qxh3 {[%clk 0:00:54]} 29. Rxd5 {[%clk 0:01:46]}  Rxd5 {[%clk 0:00:50]} 30. exd5 {[%clk 0:01:46]}  Qxf3 {[%clk 0:00:48]} 31. d6 {[%clk 0:01:39]}  Qg4+ {[%clk 0:00:36]} 32. Kf1 {[%clk 0:01:34]}  Qd1+ {[%clk 0:00:36]} 33. Kg2 {[%clk 0:01:34]}  Qg4+ {[%clk 0:00:35]} 34. Kh2 {[%clk 0:01:17]}  Qh4+ {[%clk 0:00:29]} 35. Kg1 {[%clk 0:01:09]}  Qg4+ {[%clk 0:00:27]} 36. Kf1 {[%clk 0:01:04]}  Qc4+ {[%clk 0:00:26]} 37. Ke1 {[%clk 0:00:58]}  Qb4+ {[%clk 0:00:21]} 38. Ke2 {[%clk 0:00:56]}  Qc4+ {[%clk 0:00:20]} 39. Ke3 {[%clk 0:00:56]}  Qb3+ {[%clk 0:00:19]} 40. Ke2 {[%clk 0:00:55]}  Qc2+ {[%clk 0:00:19]} 41. Kf3 {[%clk 0:00:53]}  Qd3+ {[%clk 0:00:18]} 42. Kg2 {[%clk 0:00:52]}  Qc4 {[%clk 0:00:15]} 43. Kg3 {[%clk 0:00:34]}  Kh7 {[%clk 0:00:11]} 44. Qf5+ {[%clk 0:00:20]}  g6 {[%clk 0:00:07]} 45. Qf6 {[%clk 0:00:20]}  Qd3+ {[%clk 0:00:07]} 46. Kg2 {[%clk 0:00:19]}  Qd5+ {[%clk 0:00:07]} 47. Kf1 {[%clk 0:00:19]}  Qd1+ {[%clk 0:00:07]} 48. Kg2 {[%clk 0:00:20]}  Qd5+ {[%clk 0:00:07]} 49. Kg3 {[%clk 0:00:20]}  Qd3+ {[%clk 0:00:04]} 50. Kf4 {[%clk 0:00:20]}  Qc4+ {[%clk 0:00:04]} 51. Ke3 {[%clk 0:00:20]}  Qb3+ {[%clk 0:00:03]} 52. Ke4 {[%clk 0:00:19]}  Qc4+ {[%clk 0:00:03]} 53. Ke3 {[%clk 0:00:19]}  Qb3+ {[%clk 0:00:03]} 54. Ke2 {[%clk 0:00:19]}  Qc2+ {[%clk 0:00:03]} 55. Ke3 {[%clk 0:00:17]}  Qb3+ {[%clk 0:00:03]} 1/2-1/2


[Site "https://www.chess.com"]

[Event "Titled Tuesday Blitz April 05 Early 2022"]
[White "Musovic, Armin"]
[Black "Gatterer, Florian"]
[WhiteFideId "939935"]
[BlackFideId "811688"]
[WhiteElo "2255"]
[BlackElo "2218"]
[Result "0-1"]
[Round "05"]
[TimeControl "180+1"]
[Date "2022.04.05"]
[WhiteClock "0:00:10"]
[BlackClock "0:00:19"]

1. a3 {[%clk 0:03:00]}  e5 {[%clk 0:02:58]} 2. Nc3 {[%clk 0:03:01]}  d5 {[%clk 0:02:55]} 3. d4 {[%clk 0:03:01]}  e4 {[%clk 0:02:52]} 4. Bf4 {[%clk 0:03:01]}  Nf6 {[%clk 0:02:50]} 5. Nb5 {[%clk 0:02:59]}  Na6 {[%clk 0:02:47]} 6. c4 {[%clk 0:02:57]}  c6 {[%clk 0:02:43]} 7. Nc3 {[%clk 0:02:58]}  Bd6 {[%clk 0:02:42]} 8. Bg5 {[%clk 0:02:54]}  Be6 {[%clk 0:02:42]} 9. cxd5 {[%clk 0:02:50]}  cxd5 {[%clk 0:02:40]} 10. e3 {[%clk 0:02:49]}  Nc7 {[%clk 0:02:38]} 11. Qa4+ {[%clk 0:02:47]}  Bd7 {[%clk 0:02:32]} 12. Qb3 {[%clk 0:02:36]}  Bc6 {[%clk 0:02:27]} 13. Nge2 {[%clk 0:02:31]}  h6 {[%clk 0:02:23]} 14. Bh4 {[%clk 0:02:32]}  O-O {[%clk 0:02:22]} 15. h3 {[%clk 0:02:22]}  Rc8 {[%clk 0:02:14]} 16. g4 {[%clk 0:02:16]}  g5 {[%clk 0:02:05]} 17. Bg3 {[%clk 0:02:16]}  Ne6 {[%clk 0:02:05]} 18. Bxd6 {[%clk 0:02:07]}  Qxd6 {[%clk 0:02:04]} 19. Ng3 {[%clk 0:02:08]}  Ng7 {[%clk 0:02:00]} 20. h4 {[%clk 0:01:58]}  Nxg4 {[%clk 0:01:57]} 21. hxg5 {[%clk 0:01:58]}  hxg5 {[%clk 0:01:57]} 22. Bh3 {[%clk 0:01:58]}  Nxe3 {[%clk 0:01:50]} 23. Bxc8 {[%clk 0:01:57]}  Rxc8 {[%clk 0:01:50]} 24. Ncxe4 {[%clk 0:01:51]}  Ng2+ {[%clk 0:01:34]} 25. Kf1 {[%clk 0:01:51]}  dxe4 {[%clk 0:01:34]} 26. Kxg2 {[%clk 0:01:51]}  e3+ {[%clk 0:01:32]} 27. f3 {[%clk 0:01:51]}  Bxf3+ {[%clk 0:01:08]} 28. Kxf3 {[%clk 0:01:42]}  Qf4+ {[%clk 0:01:06]} 29. Kg2 {[%clk 0:01:36]}  Qf2+ {[%clk 0:00:51]} 30. Kh3 {[%clk 0:01:36]}  Rc6 {[%clk 0:00:38]} 31. Rhf1 {[%clk 0:00:18]}  g4+ {[%clk 0:00:32]} 32. Kh4 {[%clk 0:00:16]}  Rh6+ {[%clk 0:00:30]} 33. Kg5 {[%clk 0:00:10]}  Rg6+ {[%clk 0:00:27]} 34. Kh4 {[%clk 0:00:10]}  Qh2# {[%clk 0:00:19]} 0-1


[Site "https://www.chess.com"]

[Event "Titled Tuesday Blitz April 05 Early 2022"]
[White "Namitbir Singh Walia"]
[Black "Sanchez Alvares, Kelvin Antonio"]
[WhiteFideId "35071068"]
[BlackFideId "3906680"]
[WhiteElo "1565"]
[BlackElo "2193"]
[Result "1-0"]
[Round "05"]
[TimeControl "180+1"]
[Date "2022.04.05"]
[WhiteClock "0:00:05"]
[BlackClock "0:00:02"]

1. d4 {[%clk 0:03:00]}  d5 {[%clk 0:02:59]} 2. c4 {[%clk 0:03:01]}  c6 {[%clk 0:02:59]} 3. g3 {[%clk 0:03:01]}  Nf6 {[%clk 0:02:59]} 4. Bg2 {[%clk 0:03:01]}  e6 {[%clk 0:02:59]} 5. Nf3 {[%clk 0:03:01]}  Nbd7 {[%clk 0:02:59]} 6. O-O {[%clk 0:03:02]}  dxc4 {[%clk 0:02:59]} 7. Qc2 {[%clk 0:03:00]}  b5 {[%clk 0:02:59]} 8. a4 {[%clk 0:02:51]}  Bb7 {[%clk 0:02:58]} 9. Nbd2 {[%clk 0:02:24]}  a6 {[%clk 0:02:55]} 10. b3 {[%clk 0:02:18]}  cxb3 {[%clk 0:02:54]} 11. Nxb3 {[%clk 0:02:19]}  Rc8 {[%clk 0:02:53]} 12. Rd1 {[%clk 0:02:09]}  Qb6 {[%clk 0:02:42]} 13. a5 {[%clk 0:01:44]}  Qa7 {[%clk 0:02:41]} 14. Be3 {[%clk 0:01:41]}  Nd5 {[%clk 0:02:39]} 15. Bd2 {[%clk 0:01:41]}  c5 {[%clk 0:02:38]} 16. dxc5 {[%clk 0:01:22]}  Nxc5 {[%clk 0:02:38]} 17. Rac1 {[%clk 0:00:49]}  Be7 {[%clk 0:02:21]} 18. e4 {[%clk 0:00:43]}  Nxb3 {[%clk 0:02:09]} 19. Qxb3 {[%clk 0:00:44]}  Nf6 {[%clk 0:02:03]} 20. Be3 {[%clk 0:00:25]}  Qa8 {[%clk 0:01:57]} 21. Ng5 {[%clk 0:00:19]}  h6 {[%clk 0:01:44]} 22. Nxe6 {[%clk 0:00:18]}  fxe6 {[%clk 0:01:43]} 23. Qxe6 {[%clk 0:00:19]}  Rxc1 {[%clk 0:01:35]} 24. Rxc1 {[%clk 0:00:20]}  Qd8 {[%clk 0:01:26]} 25. e5 {[%clk 0:00:19]}  Bxg2 {[%clk 0:01:11]} 26. exf6 {[%clk 0:00:19]}  Bd5 {[%clk 0:01:05]} 27. fxg7 {[%clk 0:00:17]}  Rg8 {[%clk 0:01:00]} 28. Qg6+ {[%clk 0:00:17]}  Bf7 {[%clk 0:00:58]} 29. Qxh6 {[%clk 0:00:14]}  Bf6 {[%clk 0:00:53]} 30. Re1 {[%clk 0:00:11]}  Bxg7 {[%clk 0:00:10]} 31. Bg5+ {[%clk 0:00:10]}  Kd7 {[%clk 0:00:07]} 32. Qh3+ {[%clk 0:00:10]}  Kc6 {[%clk 0:00:06]} 33. Bxd8 {[%clk 0:00:09]}  Rxd8 {[%clk 0:00:07]} 34. Rc1+ {[%clk 0:00:08]}  Bc4 {[%clk 0:00:06]} 35. Qg4 {[%clk 0:00:08]}  Bd4 {[%clk 0:00:05]} 36. Rd1 {[%clk 0:00:06]}  Re8 {[%clk 0:00:02]} 37. Qxd4 {[%clk 0:00:05]} 1-0


[Site "https://www.chess.com"]

[Event "Titled Tuesday Blitz April 05 Early 2022"]
[White "Noboa Silva, Kevin"]
[Black "De Souza, Cristiano Gomes"]
[WhiteFideId "3618471"]
[BlackFideId "2151758"]
[WhiteElo "2172"]
[BlackElo "2068"]
[Result "1-0"]
[Round "05"]
[TimeControl "180+1"]
[Date "2022.04.05"]
[WhiteClock "0:01:39"]
[BlackClock "0:00:38"]

1. e4 {[%clk 0:02:59]}  c5 {[%clk 0:02:58]} 2. c3 {[%clk 0:02:59]}  d6 {[%clk 0:02:51]} 3. d4 {[%clk 0:02:59]}  Nf6 {[%clk 0:02:42]} 4. Bd3 {[%clk 0:02:58]}  Qc7 {[%clk 0:02:36]} 5. Nf3 {[%clk 0:02:56]}  Bg4 {[%clk 0:02:29]} 6. O-O {[%clk 0:02:55]}  Nbd7 {[%clk 0:02:23]} 7. Re1 {[%clk 0:02:53]}  e5 {[%clk 0:02:18]} 8. d5 {[%clk 0:02:51]}  Be7 {[%clk 0:02:16]} 9. a4 {[%clk 0:02:51]}  O-O {[%clk 0:02:14]} 10. Na3 {[%clk 0:02:50]}  a6 {[%clk 0:02:13]} 11. h3 {[%clk 0:02:49]}  Bh5 {[%clk 0:02:11]} 12. g4 {[%clk 0:02:45]}  Bg6 {[%clk 0:02:11]} 13. Qe2 {[%clk 0:02:30]}  Rfe8 {[%clk 0:02:05]} 14. Nc2 {[%clk 0:02:23]}  h6 {[%clk 0:01:47]} 15. c4 {[%clk 0:02:21]}  Nf8 {[%clk 0:01:42]} 16. Nd2 {[%clk 0:02:05]}  Bh7 {[%clk 0:01:29]} 17. Nf1 {[%clk 0:02:00]}  Ng6 {[%clk 0:01:28]} 18. Ng3 {[%clk 0:02:00]}  Nf4 {[%clk 0:01:24]} 19. Qf1 {[%clk 0:01:59]}  Qd7 {[%clk 0:01:14]} 20. Ne3 {[%clk 0:01:57]}  g6 {[%clk 0:01:11]} 21. Kh2 {[%clk 0:01:50]}  Kg7 {[%clk 0:01:11]} 22. Ng2 {[%clk 0:01:48]}  Nxg2 {[%clk 0:01:09]} 23. Kxg2 {[%clk 0:01:45]}  Rh8 {[%clk 0:01:02]} 24. f4 {[%clk 0:01:44]}  exf4 {[%clk 0:01:01]} 25. Bxf4 {[%clk 0:01:43]}  Rag8 {[%clk 0:00:54]} 26. e5 {[%clk 0:01:43]}  dxe5 {[%clk 0:00:53]} 27. Bxe5 {[%clk 0:01:44]}  g5 {[%clk 0:00:46]} 28. Nh5+ {[%clk 0:01:42]}  Kf8 {[%clk 0:00:40]} 29. Nxf6 {[%clk 0:01:41]}  Bxf6 {[%clk 0:00:39]} 30. Bxf6 {[%clk 0:01:41]}  Bxd3 {[%clk 0:00:38]} 31. Qxd3 {[%clk 0:01:39]} 1-0


[Site "https://www.chess.com"]

[Event "Titled Tuesday Blitz April 05 Early 2022"]
[White "Pajeken, Jakob Leon"]
[Black "Kozak, Antoni"]
[WhiteFideId "12942839"]
[BlackFideId "21832030"]
[WhiteElo "2351"]
[BlackElo "2236"]
[Result "1-0"]
[Round "05"]
[TimeControl "180+1"]
[Date "2022.04.05"]
[WhiteClock "0:00:39"]
[BlackClock "0:00:03"]

1. d4 {[%clk 0:02:30]}  f5 {[%clk 0:02:56]} 2. Nf3 {[%clk 0:02:28]}  Nf6 {[%clk 0:02:53]} 3. g3 {[%clk 0:02:28]}  g6 {[%clk 0:02:53]} 4. Bg2 {[%clk 0:02:29]}  Bg7 {[%clk 0:02:54]} 5. O-O {[%clk 0:02:29]}  O-O {[%clk 0:02:54]} 6. b3 {[%clk 0:02:30]}  d6 {[%clk 0:02:51]} 7. Bb2 {[%clk 0:02:30]}  c6 {[%clk 0:02:37]} 8. c4 {[%clk 0:02:28]}  a5 {[%clk 0:02:37]} 9. Qc2 {[%clk 0:02:28]}  Na6 {[%clk 0:02:30]} 10. Nc3 {[%clk 0:02:26]}  Kh8 {[%clk 0:02:16]} 11. Rac1 {[%clk 0:02:19]}  Bd7 {[%clk 0:02:11]} 12. Rfd1 {[%clk 0:02:18]}  Rc8 {[%clk 0:02:10]} 13. e3 {[%clk 0:02:13]}  b5 {[%clk 0:02:09]} 14. Qe2 {[%clk 0:02:08]}  bxc4 {[%clk 0:01:52]} 15. Qxc4 {[%clk 0:02:09]}  Nb4 {[%clk 0:01:49]} 16. a3 {[%clk 0:02:06]}  Nbd5 {[%clk 0:01:48]} 17. Na4 {[%clk 0:01:58]}  Be6 {[%clk 0:01:18]} 18. Qc2 {[%clk 0:01:56]}  Ne4 {[%clk 0:01:11]} 19. Nd2 {[%clk 0:01:55]}  Nxd2 {[%clk 0:01:08]} 20. Rxd2 {[%clk 0:01:56]}  g5 {[%clk 0:01:02]} 21. Qd1 {[%clk 0:01:55]}  Qe8 {[%clk 0:00:57]} 22. Rdc2 {[%clk 0:01:50]}  f4 {[%clk 0:00:36]} 23. e4 {[%clk 0:01:48]}  Nf6 {[%clk 0:00:28]} 24. f3 {[%clk 0:01:44]}  fxg3 {[%clk 0:00:27]} 25. Nb6 {[%clk 0:01:26]}  gxh2+ {[%clk 0:00:25]} 26. Kxh2 {[%clk 0:01:25]}  Rb8 {[%clk 0:00:19]} 27. Rxc6 {[%clk 0:01:24]}  g4 {[%clk 0:00:20]} 28. f4 {[%clk 0:01:22]}  Qh5+ {[%clk 0:00:18]} 29. Kg3 {[%clk 0:01:20]}  Bh6 {[%clk 0:00:16]} 30. d5 {[%clk 0:01:18]}  Bg8 {[%clk 0:00:15]} 31. Nd7 {[%clk 0:01:16]}  Rf7 {[%clk 0:00:13]} 32. Nxb8 {[%clk 0:01:14]}  Rg7 {[%clk 0:00:08]} 33. Bxf6 {[%clk 0:01:12]}  exf6 {[%clk 0:00:08]} 34. Rc7 {[%clk 0:01:07]}  Bxf4+ {[%clk 0:00:06]} 35. Kxf4 {[%clk 0:01:07]}  Qg5+ {[%clk 0:00:06]} 36. Kg3 {[%clk 0:01:08]}  Qe5+ {[%clk 0:00:06]} 37. Kf2 {[%clk 0:01:06]}  Qf4+ {[%clk 0:00:06]} 38. Kg1 {[%clk 0:01:00]}  Qe3+ {[%clk 0:00:06]} 39. Kf1 {[%clk 0:00:59]}  Rg5 {[%clk 0:00:06]} 40. R1c2 {[%clk 0:00:53]}  Rh5 {[%clk 0:00:04]} 41. R7c3 {[%clk 0:00:45]}  Qf4+ {[%clk 0:00:04]} 42. Rf2 {[%clk 0:00:44]}  Qe5 {[%clk 0:00:05]} 43. Qd2 {[%clk 0:00:40]}  Rg5 {[%clk 0:00:04]} 44. Nd7 {[%clk 0:00:39]}  Qe7 {[%clk 0:00:03]} 45. Nxf6 {[%clk 0:00:39]} 1-0


[Site "https://www.chess.com"]

[Event "Titled Tuesday Blitz April 05 Early 2022"]
[White "Pakleza, Zbigniew"]
[Black "Biletskiy, Danylo"]
[WhiteFideId "1119290"]
[BlackFideId "14155419"]
[WhiteElo "2467"]
[BlackElo "2087"]
[Result "1-0"]
[Round "05"]
[TimeControl "180+1"]
[Date "2022.04.05"]
[WhiteClock "0:00:08"]
[BlackClock "0:00:01"]

1. d4 {[%clk 0:03:00]}  Nf6 {[%clk 0:02:28]} 2. Nf3 {[%clk 0:03:00]}  e6 {[%clk 0:02:28]} 3. Bf4 {[%clk 0:03:00]}  b6 {[%clk 0:02:25]} 4. e3 {[%clk 0:03:01]}  Bb7 {[%clk 0:02:25]} 5. h3 {[%clk 0:03:01]}  d5 {[%clk 0:02:25]} 6. Nbd2 {[%clk 0:03:00]}  c5 {[%clk 0:02:26]} 7. Ne5 {[%clk 0:02:58]}  Nc6 {[%clk 0:02:18]} 8. Bb5 {[%clk 0:02:53]}  Rc8 {[%clk 0:02:17]} 9. c3 {[%clk 0:02:53]}  Bd6 {[%clk 0:02:17]} 10. Qa4 {[%clk 0:02:52]}  Bxe5 {[%clk 0:02:07]} 11. Bxe5 {[%clk 0:02:44]}  a6 {[%clk 0:01:43]} 12. Bxa6 {[%clk 0:02:28]}  Ra8 {[%clk 0:01:43]} 13. Bxb7 {[%clk 0:02:28]}  Rxa4 {[%clk 0:01:42]} 14. Bxc6+ {[%clk 0:02:28]}  Nd7 {[%clk 0:01:43]} 15. Bxa4 {[%clk 0:02:28]}  O-O {[%clk 0:01:43]} 16. Bxd7 {[%clk 0:02:22]}  Qxd7 {[%clk 0:01:44]} 17. O-O {[%clk 0:02:21]}  f6 {[%clk 0:01:41]} 18. Bg3 {[%clk 0:02:20]}  Ra8 {[%clk 0:01:41]} 19. a3 {[%clk 0:01:48]}  Qb5 {[%clk 0:01:26]} 20. Rab1 {[%clk 0:01:47]}  Qd3 {[%clk 0:01:18]} 21. Nf3 {[%clk 0:01:47]}  Rc8 {[%clk 0:01:14]} 22. Rfd1 {[%clk 0:01:46]}  Qa6 {[%clk 0:01:09]} 23. Rbc1 {[%clk 0:01:32]}  Qa4 {[%clk 0:00:51]} 24. Rd2 {[%clk 0:01:30]}  Qb3 {[%clk 0:00:39]} 25. Re1 {[%clk 0:01:29]}  Kf7 {[%clk 0:00:35]} 26. e4 {[%clk 0:01:27]}  h6 {[%clk 0:00:35]} 27. exd5 {[%clk 0:01:22]}  exd5 {[%clk 0:00:35]} 28. Rde2 {[%clk 0:01:19]}  Kg8 {[%clk 0:00:28]} 29. h4 {[%clk 0:01:16]}  Rd8 {[%clk 0:00:24]} 30. h5 {[%clk 0:01:08]}  Qb5 {[%clk 0:00:14]} 31. Nh4 {[%clk 0:00:46]}  cxd4 {[%clk 0:00:13]} 32. cxd4 {[%clk 0:00:47]}  Qa4 {[%clk 0:00:08]} 33. Nf5 {[%clk 0:00:41]}  Qd7 {[%clk 0:00:06]} 34. Ne7+ {[%clk 0:00:40]}  Kh7 {[%clk 0:00:05]} 35. f3 {[%clk 0:00:29]}  Qe8 {[%clk 0:00:02]} 36. Ng6 {[%clk 0:00:27]}  Qd7 {[%clk 0:00:02]} 37. Re7 {[%clk 0:00:20]}  Qf5 {[%clk 0:00:02]} 38. Nf4 {[%clk 0:00:17]}  Rc8 {[%clk 0:00:02]} 39. Ne6 {[%clk 0:00:13]}  Rg8 {[%clk 0:00:01]} 40. Nf4 {[%clk 0:00:08]} 1-0


[Site "https://www.chess.com"]